{"text_format":"1","workbook":"xlsx","n_sheets":6,"sheets":["Web form","Custom IO","External cables","NRE","Options","Instructions"],"not_rendered":{"charts":0,"images":0,"macros":1,"external_links":0,"defined_names":0,"comments":0,"pivot_tables":0},"unopened":[],"bounds":{"document_bytes":16777216,"sheet_cells":100000,"rows_first":2000,"rows_last":500,"rows_between":2000,"halvings":0,"cell_chars":16384,"cell_head_chars":4096},"cells_cut":0,"cells_raw":0,"read":"whole","date_system":"1900"}

{"sheet":"Web form","index":0,"n_rows":93,"n_cols":9,"rows_kept":93,"cut":false,"hidden":false,"merged":[]}
["SabreCom-JSP Rugged System option selector and part number configurator",null,"v4.8","2025-02-21",null,"Hide","Hide","Hide","Hide"]
["Click yellow cell. Then click arrow that appears to the right to choose an option.",null,null,null,null,"for","for","for","for"]
["Options with * are considered \"default\" options.",null,null,null,null,"Customer","Customer","Customer","Customer"]
["Part number and part description text will automatically fill in based on your selections.",null,null,null,null,"Use","Use","Use","Use"]
["All options must be selected to generate a valid configuration and part number.",null,null,null,null,"For DSC only: Enter details of custom items on the Custom IO tab."]
["When completed, submit this configuration worksheet to the email address below for a quote or further discussion with our team."]
["sales@diamondsystems.com"]
[null,null,null,"Part number builder text","Part description builder text","Cost","Margin","Price"]
["Base model (no selection required)",null,null,"SCM-JSP","SabreCom-JSP Rugged System, ",{"$f":"H46+H93","v":1846},0.6,{"$f":"ROUND(F9/(1-G9),0)","v":4615}]
[]
[{"$f":"Options!A1","v":"Jasper Carrier Board"},"Choose One:",null,{"$f":"VLOOKUP(B11,Options!A:C,2,FALSE)","v":""},{"$f":"VLOOKUP(B11,Options!A:C,3,FALSE)","v":""},{"$f":"VLOOKUP(B11,Options!A:F,4,FALSE)","v":0},{"$f":"VLOOKUP(B11,Options!A:F,5,FALSE)","v":0},{"$f":"VLOOKUP(B11,Options!A:F,6,FALSE)","v":0}]
[]
[{"$f":"Options!G1","v":"Processor & RAM"},"Choose One:",null,{"$f":"VLOOKUP(B13,Options!G:I,2,FALSE)","v":""},{"$f":"VLOOKUP(B13,Options!G:I,3,FALSE)","v":""},{"$f":"VLOOKUP(B13,Options!G:L,4,FALSE)","v":0},{"$f":"VLOOKUP(B13,Options!G:L,5,FALSE)","v":0},{"$f":"VLOOKUP(B13,Options!G:L,6,FALSE)","v":0}]
[]
[{"$f":"Options!M1","v":"I/O Connector Layout"},"Choose One:",null,{"$f":"VLOOKUP(B15,Options!M:O,2,FALSE)","v":""},{"$f":"VLOOKUP(B15,Options!M:R,3,FALSE)","v":""},{"$f":"VLOOKUP(B15,Options!M:R,4,FALSE)","v":0},{"$f":"VLOOKUP(B15,Options!M:R,5,FALSE)","v":0},{"$f":"VLOOKUP(B15,Options!M:R,6,FALSE)","v":0}]
[]
[{"$f":"Options!S1","v":"Power Supply"},"Choose One:",null,{"$f":"VLOOKUP(B17,Options!S:X,2,FALSE)","v":""},{"$f":"VLOOKUP($B17,Options!$S:$X,3,FALSE)","v":""},{"$f":"VLOOKUP($B17,Options!$S:$X,4,FALSE)","v":0},{"$f":"VLOOKUP($B17,Options!$S:$X,5,FALSE)","v":0},{"$f":"VLOOKUP($B17,Options!$S:$X,6,FALSE)","v":0}]
[]
[{"$f":"Options!Y1","v":"Integrated SSD"},"Choose One:",null,{"$f":"VLOOKUP(B19,Options!Y:AD,2,FALSE)","v":""},{"$f":"VLOOKUP(B19,Options!Y:AD,3,FALSE)","v":""},{"$f":"VLOOKUP(B19,Options!Y:AD,4,FALSE)","v":0},{"$f":"VLOOKUP(B19,Options!Y:AD,5,FALSE)","v":0},{"$f":"VLOOKUP(B19,Options!Y:AD,6,FALSE)","v":0}]
[]
[{"$f":"Options!AE1","v":"Operating System"},"Choose One:",null,{"$f":"VLOOKUP(B21,Options!AE:AJ,2,FALSE)","v":""},{"$f":"VLOOKUP(B21,Options!AE:AJ,3,FALSE)","v":""},{"$f":"VLOOKUP(B21,Options!AE:AJ,4,FALSE)","v":0},{"$f":"VLOOKUP(B21,Options!AE:AJ,5,FALSE)","v":0},{"$f":"VLOOKUP(B21,Options!AE:AJ,6,FALSE)","v":0}]
[]
[{"$f":"Options!AK1","v":"I/O Expansion"},"Choose One:",null,{"$f":"VLOOKUP(B23,Options!AK:AM,2,FALSE)","v":""},{"$f":"VLOOKUP(B23,Options!AK:AM,3,FALSE)","v":""},{"$f":"IF($D$23=\"-01\",0,'Custom IO'!G19)","v":0},{"$f":"IF($D$23=\"-01\",0,'Custom IO'!H19)","v":0},{"$f":"IF($D$23=\"-01\",0,'Custom IO'!I19)","v":0},"These numbers come"]
[null,null,null,null,null,null,null,null,"from Custom IO tab."]
[null,"<Enter additional I/O details here. Cell will expand as needed.>"]
[null,null,null,null,null,0,0.55000000000000004,{"$f":"ROUND(F26/(1-G26),0)","v":0},"Items not specified elsewhere"]
["Your system part number:",{"$f":"_xlfn.CONCAT(D9:D23)","v":"SCM-JSP"},null,null,null,300,null,500,"Assembly / test labor"]
["Your system description:",{"$f":"_xlfn.CONCAT(E9:E23)","v":"SabreCom-JSP Rugged System, "},null,null,null,{"$f":"SUM(F9:F27)","v":2146},null,{"$f":"SUM(H9:H27)","v":5115},"Calculated price"]
[null,null,null,null,null,"Cost",null,2000,"Bonus"]
[null,null,null,null,null,null,null,50,"Rounding"]
[null,null,null,null,null,null,null,{"$f":"MROUND(H29+H28,H30)","v":7100},"Qty 1 price"]
[null,null,null,null,null,null,null,{"$f":"H31-F28","v":4954},"Margin $"]
[null,null,null,null,null,null,null,{"$f":"H32/H31","v":0.69774647887323948},"Margin %"]
[null,null,null,null,null,null,0.04,{"$f":"MROUND(H31*(1-G34),H30)","v":6800},"Qty 5 price"]
[null,null,null,null,null,null,null,{"$f":"H34-F28","v":4654},"Margin before commission"]
[null,null,null,null,null,null,null,{"$f":"H35/H34","v":0.68441176470588239},"Margin before commission"]
[null,null,null,null,null,null,0.18,{"$f":"MROUND(H31*(1-G37),H30)","v":5800},"Distributor price"]
[null,null,null,null,null,null,null,{"$f":"H37-F28","v":3654},"Margin after commission"]
[null,null,null,null,null,null,null,{"$f":"H38/H37","v":0.63},"Margin after commission"]
[]
[null,null,null,null,null,"Internal cables, no DAQ (included in base model cost)"]
[null,null,null,null,null,6982070,"Power Dist.",25]
[null,null,null,null,null,6987021,"Power in",100]
[null,null,null,null,null,6987074,"HDMI",175]
[null,null,null,null,null,6987107,"I/O",{"$f":"H62","v":554},"See detail below"]
[null,null,null,null,null,"Total",null,{"$f":"SUM(H42:H45)","v":854}]
[]
[null,null,null,null,null,"Internal cables with DAQ, 1 USB 3.0 (for reference only)"]
[null,null,null,null,null,6982070,"Power Dist.",25]
[null,null,null,null,null,6987021,"Power in",100]
[null,null,null,null,null,6987074,"HDMI",175]
[null,null,null,null,null,6987107,"I/O",{"$f":"H62","v":554},"See detail below"]
[null,null,null,null,null,null,"DAQ",{"$f":"H74","v":470},"See detail below"]
[null,null,null,null,null,6987075,"USB 3",{"$f":"H68","v":239},"See detail below"]
[null,null,null,null,null,"Total",null,{"$f":"SUM(H49:H54)","v":1563}]
[]
[]
[null,null,null,null,null,"6987107 J3 main I/O cable cost (included in base model cost)"]
[null,null,null,null,null,"Connector",null,100]
[null,null,null,null,null,"Cables",7,{"$f":"G60*I60","v":70},10]
[null,null,null,null,null,"Wires",64,{"$f":"G61*I61","v":384},6]
[null,null,null,null,null,"Total",null,{"$f":"SUM(H59:H61)","v":554}]
[]
[null,null,null,null,null,"6987075 USB 3.0 cable cost model (qty 1 included in base model cost)"]
[null,null,null,null,null,"Connector",null,175]
[null,null,null,null,null,"Cables",1,{"$f":"G66*I66","v":10},10]
[null,null,null,null,null,"Wires",9,{"$f":"G67*I67","v":54},6]
[null,null,null,null,null,"Total",null,{"$f":"SUM(H65:H67)","v":239}]
[]
[null,null,null,null,null,"DAQ cable cost model (included in options costs)"]
[null,null,null,null,null,"Connector",2,{"$f":"G71*I71","v":150},75]
[null,null,null,null,null,"Cables",2,{"$f":"G72*I72","v":20},10]
[null,null,null,null,null,"Wires",50,{"$f":"G73*I73","v":300},6]
[null,null,null,null,null,"Total",null,{"$f":"SUM(H71:H73)","v":470}]
[]
[null,null,null,null,null,"Generic cable cost model (enter items in yellow)"]
[null,null,null,null,null,"Connector",null,100]
[null,null,null,null,null,"Cables",2,{"$f":"G78*I78","v":20},10]
[null,null,null,null,null,"Wires",50,{"$f":"G79*I79","v":300},6]
[null,null,null,null,null,"Total cost",null,{"$f":"SUM(H77:H79)","v":420}]
[]
[null,null,null,null,null,"Dummy receptacle cost:",null,25]
[]
[null,null,null,null,null,"Enclosure cost model (included in base model cost)"]
[null,null,null,null,null,"7820160 Main body",null,390,"ACE quote 1-3"]
[null,null,null,null,null,"7820161 Top",null,220,"ACE quote 1-3"]
[null,null,null,null,null,"7820162 Bottom",null,55,"ACE quote 1-3"]
[null,null,null,null,null,"Enclosure gaskets",null,40,"$20 x 2"]
[null,null,null,null,null,"Connector mounts",null,50,"($5 + $3) x 6"]
[null,null,null,null,null,"Connector fasteners",null,{"$f":"3*4*6","v":72},"$3 x 4 x 6"]
[null,null,null,null,null,"Misc. fasteners",null,5]
[null,null,null,null,null,"Connector covers",null,{"$f":"40*4","v":160},"$40 x 4"]
[null,null,null,null,null,"Total",null,{"$f":"SUM(H85:H92)","v":992}]

{"sheet":"Custom IO","index":1,"n_rows":47,"n_cols":11,"rows_kept":47,"cut":false,"hidden":true,"merged":[]}
["Custom I/O specifications"]
["Delete all old content in yellow cells before beginning!"]
["Enter all relevant information in columns B, C, D, E, F, H"]
["Enter either DSC part number or Vendor and Vendor part number for each item"]
["Include cables for all I/O boards. An estimated cost can be used if actual cost is not available. Worksheet below can be used to estimate custom cable cost."]
["Do not adjust values in gray or green cells."]
["Green totals will be transferred automatically to the main cost / price worksheet."]
[]
["Item","Description","Vendor","Vendor PN","Cost","Qty","Total","Margin","Price adder"]
[1,null,null,null,null,null,{"$f":"F10*E10","v":0},0.45,{"$f":"G10/(1-H10)","v":0}]
[2,null,null,null,null,null,{"$f":"F11*E11","v":0},0.55000000000000004,{"$f":"G11/(1-H11)","v":0}]
[3,null,null,null,null,null,0,0.55000000000000004,0]
[4,null,null,null,null,null,0,0.55000000000000004,0]
[5,null,null,null,null,null,0,0.45,0]
[6,null,null,null,null,null,0,0.55000000000000004,0]
[7,null,null,null,null,null,{"$f":"F16*E16","v":0},0.55000000000000004,{"$f":"G16/(1-H16)","v":0}]
[8,null,null,null,null,null,{"$f":"F17*E17","v":0},0.55000000000000004,{"$f":"G17/(1-H17)","v":0}]
[9,null,null,null,null,null,0,0.55000000000000004,0]
[null,null,null,null,null,null,{"$f":"SUM(G10:G18)","v":0},{"$f":"IFERROR((I19-G19)/I19,0)","v":0},{"$f":"SUM(I10:I18)","v":0}]
[null,null,null,null,null,null,"Total cost",null,"Total price"]
[]
[]
[null,null,"Custom cable cost calculation - duplicate this section as needed for additional cables"]
[null,null,"Enter all data in yellow. (Unit costs shown are only examples.)"]
[null,null,"Count up number of contacts needed for all I/O signals and enter on right."]
[null,null,"Estimates are sufficient."]
[null,null,"If  wiring is being added to an exising cable, then omit the main connector by setting Qty to 0. Otherwise set it to 1."]
[null,null,"Part Num TBD","Enter cable description here"]
[null,null,"Item","Part no.","Qty","Unit","Total","Labor cost calculation"]
[null,null,"Labor cost",null,1,{"$f":"K33","v":85},{"$f":"E30*F30","v":85},"Item","Qty","Unit cost","Total"]
[null,null,"Main connector",null,1,75,{"$f":"E31*F31","v":75},"Contacts",15,5,{"$f":"J31*I31","v":75}]
[null,null,"Component or cable 1",null,2,10,20,"Misc",1,10,{"$f":"J32*I32","v":10}]
[null,null,"Component or cable 2",null,0,10,0,"Total",null,null,{"$f":"SUM(K31:K32)","v":85}]
[null,null,"Component or cable 3",null,0,10,{"$f":"E34*F34","v":0}]
[null,null,"Total unit cost",null,null,null,{"$f":"SUM(G30:G34)","v":180}]
[]
[]
[null,null,"Cable example",null,null,null,null,null,"Main (D38999) connector suggested costs"]
[null,null,"38999 D size connector with 2 branches to connect to 2 2x5 pin headers on PCBA",null,null,null,null,null,"Size","22D contacts","Cost"]
[null,null,"Each branch has 10 wires, total contacts = 20, enter on right side",null,null,null,null,null,"A",6,50]
[null,null,"Main connector: qty = 1, select cost from table at right if appropriate",null,null,null,null,null,"B",13,50]
[null,null,"Cable 1 and 2: qty = 1 each, cost = $10; alternatively: cable 1 = qty 2, cable 2 not used, qty = 0",null,null,null,null,null,"C",22,50]
[null,null,"Cable 3: not used, qty = 0",null,null,null,null,null,"D",37,75]
[null,null,null,null,null,null,null,null,"E",55,75]
[null,null,null,null,null,null,null,null,"F",66,75]
[null,null,null,null,null,null,null,null,"G",79,100]
[null,null,null,null,null,null,null,null,"H",100,100]

{"sheet":"External cables","index":2,"n_rows":43,"n_cols":17,"rows_kept":43,"cut":false,"hidden":true,"merged":[]}
["External cable cost calculator"]
["Enter data in all yellow cells. Delete all data not needed."]
["Do not modify gray and green cells."]
["Data shown for J1 J2 J3 is standard for all configurations except in special cases."]
["Data shown for J4 J5 J6 is for example only. Delete existing data when starting a new project."]
["In general, you can use the shortcut: external cable cost = internal cable cost. Check with Engineering in case of doubt or unusual situations."]
["For each cable:"]
["> If the cable already exists, use standard cost in ERP system."]
["> If the cable does not exist, use cost of matching internal cable if possible."]
["> Otherwise use cable template at right to estimate the cost of the cable."]
["Enter each cable indnividually. If the same cable is used more than once, enter it on as many rows as there are cables.",null,null,null,null,null,null,null,null,"Cable cost calculator"]
[null,null,null,null,null,null,null,null,null,null,null,null,null,null,"D38999 connector suggested costs"]
["Ref Des","Exist/New","Exist P/N","Description","Qty","Unit$","Total Cost",null,null,"Cable for J4 (fills table automatically)",null,null,null,null,"Size","22D contacts","Cost"]
["J1","Exist",6987092,"Cable, Geode, External, J1 power in",1,100,{"$f":"F14*E14","v":100},null,null,"VGA, CAN","Qty","Unit","Total",null,"A",6,50]
["J2","Exist",6987095,"Cable, Geode Osbourne, External, J4 HDMI",1,314,{"$f":"F15*E15","v":314},null,null,"System connector",1,75,{"$f":"K15*L15","v":75},null,"B",13,50]
["J3","Exist",6987106,"Cable External D3899926WF35PN to 2x Eth, 2xUSB2.0, 4x Serial, Audio, Utility",1,562,562,null,null,"# branches",2,10,{"$f":"K16*L16","v":20},null,"C",22,50]
["J4",null,null,{"$f":"J14","v":"VGA, CAN"},null,{"$f":"M19","v":180},0,null,null,"Total no. contacts",15,5,{"$f":"K17*L17","v":75},null,"D",37,75]
["J5",null,null,{"$f":"J22","v":"GPIO"},null,{"$f":"M27","v":260},0,null,null,"Miscellaneous costs",1,10,10,null,"E",55,75]
["J6",null,null,{"$f":"J30","v":"Serial + CAN + GbE"},null,{"$f":"M35","v":450},0,null,null,"Total cost (enter on left)",null,null,{"$f":"SUM(M15:M18)","v":180},null,"F",66,75]
["Other",null,null,null,null,null,0,null,null,null,null,null,null,null,"G",79,100]
["Other",null,null,null,null,null,0,null,null,"Cable for J5 (fills table automatically)",null,null,null,null,"H",100,100]
["Other",null,null,null,null,null,0,null,null,"GPIO","Qty","Unit","Total"]
["Other",null,null,null,null,null,0,null,null,"System connector",1,50,{"$f":"K23*L23","v":50}]
[null,{"$f":"COUNTA(B14:B23)","v":3},"# cables",null,null,"Total cost",{"$f":"SUM(G14:G23)","v":976},null,null,"# branches",2,10,{"$f":"K24*L24","v":20}]
[null,null,null,null,null,"Margin %",0.5,null,null,"Total no. contacts",36,5,180]
[null,null,null,null,null,"Margin $",{"$f":"G27-G24","v":974},null,null,"Miscellaneous costs",1,10,10]
[null,null,null,null,null,"Cable Kit Price (qty 1 end user)",{"$f":"MROUND(G24/(1-G25),10)","v":1950},null,null,"Total cost (enter on left)",null,null,{"$f":"SUM(M23:M26)","v":260}]
[null,null,null,null,null,"Distributor discount",0.15]
[null,null,null,null,null,"Distribuor price (qty 1)",{"$f":"MROUND(G27*(1-G28),10)","v":1660},null,null,"Cable for J6 (fills table automatically)"]
[null,null,null,null,null,"DSC Margin on Distributor price",{"$f":"(G29-G24)/G29","v":0.41204819277108434},null,null,"Serial + CAN + GbE","Qty","Unit","Total"]
[null,null,null,null,null,null,null,null,null,"System connector",1,75,{"$f":"K31*L31","v":75}]
[null,null,null,null,null,null,null,null,null,"# branches",10,10,{"$f":"K32*L32","v":100}]
[null,null,null,null,null,null,null,null,null,"Total no. contacts",53,5,265]
[null,null,null,null,null,null,null,null,null,"Miscellaneous costs",1,10,10]
[null,null,null,null,null,null,null,null,null,"Total cost (enter on left)",null,null,{"$f":"SUM(M31:M34)","v":450}]
[]
[null,null,null,null,null,null,null,null,null,"Other cable (enter manually in table)"]
[null,null,null,null,null,null,null,null,null,"<Description>","Qty","Unit","Total"]
[null,null,null,null,null,null,null,null,null,"System connector",1,50,{"$f":"K39*L39","v":50}]
[null,null,null,null,null,null,null,null,null,"# branches",2,10,{"$f":"K40*L40","v":20}]
[null,null,null,null,null,null,null,null,null,"Total no. contacts",20,5,100]
[null,null,null,null,null,null,null,null,null,"Miscellaneous costs",1,10,10]
[null,null,null,null,null,null,null,null,null,"Total cost (enter on left)",null,null,{"$f":"SUM(M39:M42)","v":180}]

{"sheet":"NRE","index":3,"n_rows":12,"n_cols":3,"rows_kept":12,"cut":false,"hidden":true,"merged":[]}
["NRE Calculation",250,"Daily rate"]
[]
["NRE activities","Days","Cost"]
["Cable design",2,{"$f":"$B$1*B4","v":500}]
["Enclosure updates",0,{"$f":"$B$1*B5","v":0}]
["Test plan",1,{"$f":"$B$1*B6","v":250}]
["Test software",3,{"$f":"$B$1*B7","v":750}]
["Documentation",1,{"$f":"$B$1*B8","v":250}]
[]
["Total cost",null,{"$f":"SUM(C4:C9)","v":1750}]
["Margin %",null,0.4]
["NRE charge",null,{"$f":"MROUND(C10/(1-C11),50)","v":2900}]

{"sheet":"Options","index":4,"n_rows":9,"n_cols":39,"rows_kept":9,"cut":false,"hidden":true,"merged":[]}
["Jasper Carrier Board","Carrier","Carrier","Carrier","Carrier","Carrier","Processor & RAM","COM","COM","COM","COM","COM","I/O Connector Layout","Connectors","Connectors","Connectors","Connectors","Connectors","Power Supply","Power","Power","Power","Power","Power","Integrated SSD","SSD","SSD","SSD","SSD","SSD","Operating System","OS","OS","OS","OS","OS","I/O Expansion","Expansion","Expansion"]
["Choose one:","","",null,null,null,"Choose one:","","",null,null,null,"Choose one:","","",null,null,null,"Choose one:","","",null,null,null,"Choose one:","","",null,null,null,"Choose one:","","",null,null,null,"Choose one:","",""]
["*With DIO (baseboard JSP-BB02D)","02D","",400,0.55000000000000004,{"$f":"ROUND(D3/(1-E3),0)","v":889},"*i7-1185GRE 32G","-1185-32","1185GRE CPU, 32GB RAM, ",1391,0.4,{"$f":"ROUND(J3/(1-K3),0)","v":2318},"3 USB 3.0","-U3","3 USB 3.0, ",{"$f":"'Web form'!H68*3","v":717},0.5,{"$f":"ROUND(P3/(1-Q3),0)","v":1434},"*MIL with isolation","J","MIL Iso Power 24V Out, ",964,0.5,{"$f":"ROUND(V3/(1-W3),0)","v":1928},"*1TB","1","1TB SSD, ",135,0.5,{"$f":"ROUND(AB3/(1-AC3),0)","v":270},"*Linux 64-bit","-LNX","Linux",75,0.5,{"$f":"ROUND(AH3/(1-AI3),0)","v":150},"*My system has no additional I/O requirements","-01",""]
["With DAQ (baseboard JSP-BB03A)","03A","DAQ, ",550,0.55000000000000004,{"$f":"ROUND(D4/(1-E4),0)","v":1222},"i7-1185G7E-64","-1185G7E-64","1185G7E CPU, 64GB RAM, ",1043,0.45,{"$f":"ROUND(J4/(1-K4),0)","v":1896},"*2 USB 3.0 + 1 38999-D","-U2D","2 USB 3.0 + 1 38999-D, ",{"$f":"2*'Web form'!H68+'Web form'!H82","v":503},0.5,{"$f":"ROUND(P4/(1-Q4),0)","v":1006},"MIL without isolation","N","MIL Power 24V Out, ",648,0.5,{"$f":"ROUND(V4/(1-W4),0)","v":1296},"2TB","2","2TB SSD, ",237,0.5,{"$f":"ROUND(AB4/(1-AC4),0)","v":474},"Windows 10 64-bit","-W10","Windows 10",{"$f":"139+AH3","v":214},0.5,{"$f":"ROUND(AH4/(1-AI4),0)","v":428},"My system requires additional I/O (list below)","-XX (requires factory review)"," (requires factory review)"]
[null,null,null,null,null,null,"i7-1365URE 32G","-1365-32","1365 CPU, 32GB RAM, ",1417,0.45,2576,"1 USB 3.0 + 2 38999-D","-UD2","1 USB 3.0 + 2 38999-D, ",{"$f":"'Web form'!H68+'Web form'!H82*2","v":289},0.5,578,"None","X","",0,0.5,{"$f":"ROUND(V5/(1-W5),0)","v":0},"512GB","5","512GB SSD, ",76,0.5,152]
[null,null,null,null,null,null,"i7-1365URE 64G","-1365-64","1365 CPU, 64GB RAM, ",1566,0.45,2847,"3 38999-D","-D3","3 38999-D, ",{"$f":"'Web form'!H82*3","v":75},0.5,{"$f":"ROUND(P6/(1-Q6),0)","v":150},null,null,null,null,null,null,"128GB","8","128GB SD, ",30,0.5,60]
[null,null,null,null,null,null,"i7-11865MRE 32E","-11865-32E","11865MRE CPU, 32GB ECC RAM, ",1501,0.45,2729,"2 DAQ + 1 38999-D","-AD1","1 38999-D, ",{"$f":"'Web form'!H74+'Web form'!H82","v":495},0.5,{"$f":"ROUND(P7/(1-Q7),0)","v":990}]
[null,null,null,null,null,null,null,null,null,null,null,null,"1 DAQ + 2 38999-D","-AD2","2 38999-D, ",{"$f":"'Web form'!H74+'Web form'!H82*2","v":520},0.5,{"$f":"ROUND(P8/(1-Q8),0)","v":1040}]
[null,null,null,null,null,null,null,null,null,null,null,null,"2 DAQ + 1 USB 3.0","-AU","1 USB 3.0, ",{"$f":"'Web form'!H68+'Web form'!H74","v":709},0.5,{"$f":"ROUND(P9/(1-Q9),0)","v":1418}]

{"sheet":"Instructions","index":5,"n_rows":9,"n_cols":1,"rows_kept":9,"cut":false,"hidden":true,"merged":[]}
["Instructions"]
["Press Reset button on Web form tab to clear form."]
["Select all features on Web Form. Each option must have a selection."]
["If any custom I/O is needed, enter it on the Custom IO tab. If no custom IO is needed, be sure the list is empty so the cost and price are zero."]
["Any custom cabling can be calculated using the cable cost calculator on the Custom IO tab. This section can be duplicated as needed."]
["Custom IO cost and price are automatically transferred to the main form."]
["Any special costs not covered elsewhere can be added in the yellow line on the Web form."]
["Base model cost includs cost of cables J1 power in, J2 HDMI, and J3 main I/O. Other cable costs except for custom cables are included in the Connector options."]
["If DAQ connector option is selected, the J4 and J5 DAQ cable costs will be included in the cost value shown."]